bitfinex/quotes_BTCUSD_20250713
["timestamp","ask_amount","ask_price","bid_price","bid_amount"]
[1752436870125,1.17283962,118780.0,118770.0,5.026294]
[1752436870513,1.17283962,118780.0,118770.0,5.01788759]
[1752436872130,1.17283962,118780.0,118770.0,4.88820759]
[1752436872329,1.17283962,118780.0,118770.0,4.87979754]
[1752436872536,1.17283962,118780.0,118770.0,5.00967754]
[1752436873587,1.17283962,118780.0,118770.0,4.90967754]
[1752436873805,0.53878282,118780.0,118770.0,4.90967754]
[1752436874037,1.17283962,118780.0,118770.0,4.90967754]
[1752436874253,0.53878282,118780.0,118770.0,4.90967754]
[1752436874474,1.17083962,118780.0,118770.0,4.90967754]
[1752436875095,1.17383962,118780.0,118770.0,4.90967754]
[1752436875311,1.17383962,118780.0,118770.0,4.77979754]
[1752436875523,1.17383962,118780.0,118770.0,4.90983754]
[1752436876005,1.22427962,118780.0,118770.0,4.90983754]
[1752436877104,1.24952562,118780.0,118770.0,4.90983754]
[1752436877317,1.24952562,118780.0,118770.0,4.90142971]
[1752436878367,1.24952562,118780.0,118770.0,4.89302188]
[1752436878807,1.33952562,118780.0,118770.0,4.88461405]
[1752436879040,1.33952562,118780.0,118770.0,4.75457405]
[1752436879462,1.33952562,118780.0,118770.0,4.88481405]
[1752436880123,1.65655402,118780.0,118770.0,4.5192932]
[1752436880341,1.33952562,118780.0,118770.0,4.38064537]
[1752436880556,1.65655402,118780.0,118770.0,4.35121796]
[1752436880766,1.6733908,118780.0,118770.0,4.47361013]
[1752436880976,1.64934182,118780.0,118770.0,4.47361013]
[1752436881186,1.64934182,118780.0,118770.0,4.43577489]
[1752436881462,1.64634182,118780.0,118770.0,4.43577489]
[1752436881665,1.74362572,118780.0,118770.0,4.42736706]
[1752436881874,1.7470614,118780.0,118770.0,4.39061182]
[1752436882086,1.75486735,118780.0,118770.0,4.39061182]
[1752436882303,1.75486735,118780.0,118770.0,4.38220399]
[1752436882304,1.76328621,118780.0,118770.0,4.38220399]
[1752436882519,1.76328621,118780.0,118770.0,4.35277658]
[1752436882762,1.87724977,118780.0,118770.0,4.34436875]
[1752436882997,1.73986773,118780.0,118770.0,3.9788479]
[1752436883210,1.73986773,118780.0,118770.0,3.94101266]
[1752436883211,1.79344621,118780.0,118770.0,3.94101266]
[1752436883416,1.7652837,118780.0,118770.0,3.94101266]
[1752436883626,1.7652837,118780.0,118770.0,3.93260483]
[1752436883627,1.98366221,118780.0,118770.0,3.93260483]
[1752436883842,2.06067386,118780.0,118770.0,3.89475791]
[1752436884070,1.92524393,118780.0,118770.0,3.89475791]
[1752436884298,1.96682543,118780.0,118770.0,3.88634749]
[1752436884518,1.95840679,118780.0,118770.0,3.54655589]
[1752436884731,1.95840679,118780.0,118770.0,3.60464547]
[1752436884946,2.04383672,118780.0,118770.0,3.60464547]
[1752436885172,2.04383672,118780.0,118770.0,3.56679855]
[1752436885608,2.04383672,118780.0,118770.0,3.55838813]
[1752436885815,2.04383672,118780.0,118770.0,3.38954121]
[1752436886028,2.04383672,118780.0,118770.0,3.15510036]
[1752436886239,2.04383672,118780.0,118770.0,3.11548994]
[1752436886454,2.04383672,118780.0,118770.0,3.08605344]
[1752436886455,2.06646759,118780.0,118770.0,3.08605344]
[1752436886687,2.06646759,118780.0,118770.0,3.07764302]
[1752436887112,2.06646759,118780.0,118770.0,3.0397961]
[1752436887320,2.19762759,118780.0,118770.0,2.827021]
[1752436887532,2.19762759,118780.0,118770.0,2.81861058]
[1752436887738,2.19762759,118780.0,118770.0,2.58887169]
[1752436887971,2.2051568,118780.0,118770.0,2.57621064]
[1752436888184,2.2051568,118780.0,118770.0,2.53021045]
[1752436888390,2.2301568,118780.0,118770.0,2.43979039]
[1752436888809,2.2301568,118780.0,118770.0,2.43137997]
[1752436889015,2.2301568,118780.0,118770.0,2.0280122]
[1752436889454,2.2301568,118780.0,118770.0,1.95510178]
[1752436889660,2.2301568,118780.0,118770.0,1.92565837]
[1752436889661,2.2051568,118780.0,118770.0,1.92565837]
[1752436889875,2.2051568,118780.0,118770.0,1.91724597]
[1752436890089,2.22543672,118780.0,118770.0,1.8909548]
[1752436890302,2.21943672,118780.0,118770.0,1.67262389]
[1752436890746,2.25143864,118780.0,118770.0,1.66521149]
[1752436890950,1.94241024,118780.0,118770.0,1.63576808]
[1752436891164,1.94241024,118780.0,118770.0,1.62735568]
[1752436891582,1.91899443,118780.0,118770.0,1.58949987]
[1752436891821,1.94241544,118780.0,118770.0,1.58108747]
[1752436892256,1.91241249,118780.0,118770.0,1.54323166]
[1752436892677,1.95765262,118780.0,118770.0,1.53485926]
[1752436892898,1.95765262,118780.0,118770.0,1.50541585]
[1752436893100,1.95765262,118780.0,118770.0,1.49700345]
[1752436893323,2.27468102,118780.0,118770.0,1.49700345]
[1752436893521,2.22944089,118780.0,118770.0,1.09322679]
[1752436893736,1.91241249,118780.0,118770.0,1.09322679]
[1752436893915,1.91241249,118780.0,118770.0,1.08481439]
[1752436894114,1.91241249,118780.0,118770.0,1.05537098]
[1752436894320,1.95765262,118780.0,118770.0,1.04695858]
[1752436894715,2.27469337,118780.0,118770.0,1.03854618]
[1752436895057,1.95766497,118780.0,118770.0,1.00069037]
[1752436895511,1.95766497,118780.0,118770.0,0.95736652]
[1752436895784,1.95766497,118780.0,118770.0,0.92478126]
[1752436895987,1.95766497,118780.0,118770.0,0.91636886]
[1752436896203,2.04597497,118780.0,118770.0,0.87851347]
[1752436896616,2.36300337,118780.0,118770.0,0.87010116]
[1752436896818,2.04597497,118780.0,118770.0,0.47513723]
[1752436897029,2.04597497,118780.0,118770.0,0.46672492]
[1752436897257,2.04597497,118780.0,118770.0,0.44991492]
[1752436897464,2.07097726,118780.0,118770.0,0.41205953]
[1752436897874,2.07097726,118780.0,118770.0,0.40364722]
[1752436898094,2.07097726,118780.0,118770.0,0.26475082]
[1752436898337,2.07097726,118780.0,118770.0,0.25633851]
[1752436898735,2.07097726,118780.0,118770.0,0.21848312]
[1752436898939,2.04597726,118780.0,118770.0,0.21007081]
[1752436899154,2.04497726,118780.0,118770.0,0.21007081]
[1752436899380,2.06997726,118780.0,118770.0,0.17221542]
[1752436899594,1.18153646,118780.0,118770.0,0.17221542]
[1752436899813,0.8194575,118780.0,118770.0,0.11170319]
[1752436900038,0.8194575,118780.0,118770.0,0.37646319]
[1752436900039,0.6869291,118780.0,118770.0,0.37646319]
[1752436900247,0.874551,118780.0,118770.0,0.44734951]
[1752436900464,0.66042329,118780.0,118770.0,0.40946319]
[1752436900674,0.63041062,118780.0,118770.0,0.43946319]
[1752436900900,0.57750985,118780.0,118770.0,0.43846319]
[1752436901111,0.55499824,118780.0,118770.0,0.43846319]
[1752436901319,0.56996984,118780.0,118770.0,0.43846319]
[1752436901527,0.89202046,118780.0,118770.0,0.37546319]
[1752436901737,0.93250445,118780.0,118770.0,0.37546319]
[1752436901989,0.93150445,118780.0,118770.0,0.37546319]
[1752436902211,0.9460453,118780.0,118770.0,0.37546319]
[1752436902414,0.92353369,118780.0,118770.0,0.37546319]
[1752436902630,0.92753369,118780.0,118770.0,0.37646319]
[1752436902829,0.9500453,118780.0,118770.0,0.37646319]
[1752436903050,0.92753369,118780.0,118770.0,0.37646319]
[1752436903733,0.9500453,118780.0,118770.0,0.37646319]
[1752436903936,0.9530453,118780.0,118770.0,0.37646319]
[1752436904557,1.45113186,118780.0,118770.0,0.3680146]
[1752436904763,1.66021143,118780.0,118770.0,0.3680146]
[1752436904970,1.32634597,118780.0,118770.0,0.35960601]
[1752436905377,1.32634597,118780.0,118770.0,0.35119742]
[1752436905787,1.31792712,118780.0,118770.0,0.35119742]
[1752436905996,1.72038545,118780.0,118770.0,0.35119742]
[1752436906209,1.72039463,118780.0,118770.0,0.35119742]
[1752436906621,1.6349647,118780.0,118770.0,0.35119742]
[1752436906825,1.65019216,118780.0,118770.0,0.35119742]
[1752436908470,1.60495203,118780.0,118770.0,0.35119742]
[1752436908671,1.65004379,118780.0,118770.0,0.35119742]
[1752436908999,1.58929908,118780.0,118770.0,0.35119742]
[1752436909212,1.03822768,118780.0,118770.0,0.35119742]
[1752436909424,0.74445966,118780.0,118770.0,0.35119742]
[1752436909639,1.08445966,118780.0,118770.0,0.35119742]
[1752436909879,1.09900849,118780.0,118770.0,0.35119742]
[1752436910334,1.08333785,118780.0,118770.0,0.35119742]
[1752436910561,1.03333785,118780.0,118770.0,0.3375306]
[1752436910772,1.08333785,118780.0,118770.0,0.3705306]
[1752436910982,1.06342061,118780.0,118770.0,0.3705306]
[1752436911187,1.05626914,118780.0,118770.0,0.3705306]
[1752436911389,1.0611627,118780.0,118770.0,0.3705306]
[1752436911945,1.07797639,118780.0,118770.0,0.3705306]
[1752436912206,1.07797639,118780.0,118770.0,0.40782366]
[1752436912207,0.55626946,118780.0,118770.0,0.40782366]
[1752436912371,0.80283303,118780.0,118770.0,0.43782366]
[1752436912583,1.16080541,118780.0,118770.0,0.4005306]
[1752436912991,1.17534626,118780.0,118770.0,0.4005306]
[1752436913331,1.15278159,118780.0,118770.0,0.4005306]
[1752436914585,1.14690352,118780.0,118770.0,0.4005306]
[1752436915003,0.78836267,118780.0,118770.0,0.3995306]
[1752436915232,0.22748574,118780.0,118770.0,0.43972366]
[1752436915456,0.11951336,118780.0,118770.0,0.43972366]
[1752436915675,0.44967593,118780.0,118770.0,0.43972366]
[1752436915902,0.45751336,118780.0,118770.0,0.43972366]
[1752436916132,0.45851336,118780.0,118770.0,0.43972366]
[1752436916589,0.45751336,118780.0,118770.0,0.43972366]
[1752436917256,0.44967593,118780.0,118770.0,0.44072366]
[1752436917895,0.45850263,118780.0,118770.0,0.44072366]
[1752436918102,0.45067593,118780.0,118770.0,0.44072366]
[1752436919941,0.45167593,118780.0,118770.0,0.44072366]
[1752436920150,0.366246,118780.0,118770.0,0.44072366]
[1752436923059,0.366246,118780.0,118770.0,0.43972366]
[1752436923279,0.341,118780.0,118770.0,0.75160059]
[1752436923975,0.341,118780.0,118770.0,0.43972366]
[1752436924185,0.34,118780.0,118770.0,0.43972366]
[1752436924394,0.34,118780.0,118770.0,0.44372366]
[1752436925277,0.34,118780.0,118770.0,0.75360059]
[1752436925711,0.34,118780.0,118770.0,0.75460059]
[1752436926497,0.34,118780.0,118770.0,0.83903052]
[1752436926896,0.34,118780.0,118770.0,0.84203052]
[1752436927663,0.09726117,118810.0,118790.0,0.065]
[1752436927862,0.07202617,118810.0,118800.0,0.53024]
[1752436928516,0.07202617,118810.0,118800.0,0.84011693]
[1752436929544,0.07202617,118810.0,118800.0,0.53124]
[1752436931402,0.03302832,118830.0,118820.0,0.065]
[1752436931589,0.025231,118830.0,118820.0,0.32824]
[1752436932077,0.025231,118830.0,118820.0,0.35253356]
[1752436932537,0.028231,118830.0,118820.0,0.35253356]
[1752436932764,0.030231,118830.0,118820.0,0.35268347]
[1752436932965,0.005,118830.0,118820.0,0.35268347]
[1752436934486,0.005,118830.0,118820.0,0.35272347]
[1752436935759,0.003,118830.0,118820.0,0.35272347]
[1752436936443,0.344,118830.0,118820.0,0.35272347]
[1752436936667,0.35179634,118830.0,118820.0,0.35272347]
[1752436937086,0.0087952,118830.0,118820.0,0.35272347]
[1752436937300,0.001,118830.0,118820.0,0.35272347]
[1752436938411,0.0087952,118830.0,118820.0,0.35272347]
[1752436938627,0.0097952,118830.0,118820.0,0.35272347]
[1752436938851,0.0097952,118830.0,118820.0,0.6626004]
[1752436939318,0.0087952,118830.0,118820.0,0.74803033]
[1752436939757,0.0077952,118830.0,118820.0,0.74903033]
[1752436939982,0.0077952,118830.0,118820.0,0.75103033]
[1752436940715,0.0077952,118830.0,118820.0,0.55676347]
[1752436942690,0.01455082,118840.0,118820.0,0.49176347]
[1752436942924,0.01455082,118840.0,118830.0,0.064]
[1752436943142,0.35455082,118840.0,118830.0,0.1062969]
[1752436943754,0.4837031,118830.0,118820.0,0.55089984]
[1752436943968,0.4837031,118830.0,118820.0,0.55289984]
[1752436944467,0.4837031,118830.0,118820.0,0.55089984]
[1752436944682,0.4827031,118830.0,118820.0,0.55089984]
[1752436945129,0.4827031,118830.0,118820.0,0.86665733]
[1752436945574,0.4817031,118830.0,118820.0,0.86665733]
[1752436945787,0.4817031,118830.0,118820.0,0.54989984]
[1752436946183,0.4807031,118830.0,118820.0,0.86965733]
[1752436946677,0.4807031,118830.0,118820.0,0.93285733]
[1752436947758,0.4807031,118830.0,118820.0,1.03769733]
[1752436947986,0.95257052,118830.0,118820.0,0.20482991]
[1752436948244,0.95257052,118830.0,118820.0,0.33622991]
[1752436948245,0.97780452,118830.0,118820.0,0.33622991]
[1752436948689,0.66104703,118830.0,118820.0,0.20482991]
[1752436948905,0.97780452,118830.0,118820.0,0.33522991]
[1752436949125,0.97052898,118830.0,118820.0,0.20182991]
[1752436949351,0.97052898,118830.0,118820.0,0.33334991]
[1752436949810,0.97052898,118830.0,118820.0,0.20182991]
[1752436950031,0.97252898,118830.0,118820.0,0.33338991]
[1752436950250,0.9905427,118830.0,118820.0,0.33334991]
[1752436950459,0.9935427,118830.0,118820.0,0.33334991]
[1752436952957,0.68406075,118830.0,118820.0,0.33334991]
[1752436953161,1.00137004,118830.0,118820.0,0.33334991]
[1752436953821,0.69188809,118830.0,118820.0,0.33334991]
[1752436954035,1.00137004,118830.0,118820.0,0.33334991]
[1752436954718,0.69188809,118830.0,118820.0,0.36414347]
[1752436954931,0.65918809,118830.0,118820.0,0.33334991]
[1752436956989,0.62748809,118830.0,118820.0,0.33334991]
[1752436957202,0.66008809,118830.0,118820.0,0.33334991]
[1752436957666,0.62748809,118830.0,118820.0,0.33334991]
[1752436957893,0.66008809,118830.0,118820.0,0.33334991]
[1752436961393,0.66009882,118830.0,118820.0,0.33334991]
[1752436963409,0.6420851,118830.0,118820.0,0.33334991]
[1752436965374,0.95156705,118830.0,118820.0,0.33334991]
[1752436965583,0.98266705,118830.0,118820.0,0.33334991]
[1752436965800,0.98266705,118830.0,118820.0,0.20182991]
[1752436965801,0.6731851,118830.0,118820.0,0.20182991]
[1752436966047,0.98266705,118830.0,118820.0,0.20182991]
[1752436966275,1.00072416,118830.0,118820.0,0.33306991]
[1752436966484,0.98266705,118830.0,118820.0,0.33306991]
[1752436967116,1.00072392,118830.0,118820.0,0.33306991]
[1752436967315,0.98266651,118830.0,118820.0,0.33306991]
[1752436970286,0.98266809,118830.0,118820.0,0.33306991]
[1752436970740,0.98266934,118830.0,118820.0,0.33306991]
[1752436971178,0.99013395,118830.0,118820.0,0.33306991]
[1752436971995,0.98229359,118830.0,118820.0,0.33306991]
[1752436979026,0.98229359,118830.0,118820.0,0.20182991]
[1752436979232,0.98229359,118830.0,118820.0,0.33262991]
[1752436980065,0.98229359,118830.0,118820.0,0.20182991]
[1752436980297,0.98229359,118830.0,118820.0,0.33254991]
[1752436980486,0.98229359,118830.0,118820.0,0.20182991]
[1752436980719,0.98229359,118830.0,118820.0,0.33250991]
[1752436980929,1.03273359,118830.0,118820.0,0.33250991]
[1752436981180,0.98229359,118830.0,118820.0,0.33250991]
[1752436984112,0.99683444,118830.0,118820.0,0.33250991]
[1752436988777,0.99683444,118830.0,118820.0,0.20182991]
[1752436989006,1.27280427,118830.0,118820.0,0.20182991]
[1752436989229,1.43652631,118830.0,118820.0,0.33230991]
[1752436989661,0.71748085,118810.0,118800.0,0.20168]
[1752436989870,1.12521734,118810.0,118800.0,0.33216]
[1752436990090,1.12521734,118810.0,118800.0,0.352328]
[1752436990518,1.1433068,118810.0,118800.0,0.352328]
[1752436990928,1.0928668,118810.0,118800.0,0.352328]
[1752436991138,1.0958668,118810.0,118800.0,0.352328]
[1752436991383,1.0958668,118810.0,118800.0,0.221848]
[1752436991592,1.0978668,118810.0,118800.0,0.33216]
[1752436992921,0.55616124,118810.0,118800.0,0.33216]
[1752436993153,0.46103093,118810.0,118800.0,0.33228]
[1752436993370,0.45888093,118810.0,118800.0,0.33228]
[1752436993802,0.11567093,118810.0,118800.0,0.39648]
[1752436994055,0.45567093,118810.0,118800.0,0.39648]
[1752436994497,0.11567093,118810.0,118800.0,0.36428]
[1752436994716,0.45577477,118810.0,118800.0,0.33228]
[1752436994936,0.45367093,118810.0,118800.0,0.33228]
[1752436995149,0.45367093,118810.0,118800.0,0.33328]
[1752436995534,0.45067093,118810.0,118800.0,0.33328]
[1752436996652,0.77082749,118810.0,118800.0,0.33328]
[1752436996871,0.77297749,118810.0,118800.0,0.33328]
[1752436997104,0.77297749,118810.0,118800.0,0.33316]
[1752436997333,0.80367749,118810.0,118800.0,0.33316]
[1752436998419,0.77297749,118810.0,118800.0,0.33316]
[1752436999726,0.77297749,118810.0,118800.0,0.33328]
[1752437000369,0.77297749,118810.0,118800.0,0.33316]
[1752437000576,0.80497749,118810.0,118800.0,0.33316]
[1752437003197,0.48803093,118810.0,118800.0,0.33316]
[1752437003467,0.80497749,118810.0,118800.0,0.33316]
[1752437003749,0.77297749,118810.0,118800.0,0.33316]
[1752437008613,0.80307749,118810.0,118800.0,0.33316]
[1752437008822,0.83497749,118810.0,118800.0,0.33316]
[1752437011615,0.84951834,118810.0,118800.0,0.33316]
[1752437011842,1.18452771,118810.0,118800.0,0.33316]
[1752437012083,1.27196858,118810.0,118800.0,0.33316]
[1752437012311,1.27196858,118810.0,118800.0,0.33216]
[1752437012770,1.27296858,118810.0,118800.0,0.33216]
[1752437013249,1.27396858,118810.0,118800.0,0.33216]
[1752437013448,1.2739677,118810.0,118800.0,0.33216]
[1752437013796,1.26808911,118810.0,118800.0,0.33216]
[1752437014240,1.27396761,118810.0,118800.0,0.33216]
[1752437014479,0.64007449,118810.0,118800.0,0.33216]
[1752437014663,1.27396761,118810.0,118800.0,0.33216]
[1752437015466,0.95702105,118810.0,118800.0,0.33216]
[1752437016310,0.95114255,118810.0,118800.0,0.33216]
[1752437018606,0.95702304,118810.0,118800.0,0.33216]
[1752437018846,0.95114255,118810.0,118800.0,0.33216]
[1752437019356,0.95114391,118810.0,118800.0,0.33216]
[1752437019871,0.95702493,118810.0,118800.0,0.33216]
[1752437022152,0.95114391,118810.0,118800.0,0.33216]
[1752437022683,0.95702455,118810.0,118800.0,0.33216]
[1752437024666,1.27397111,118810.0,118800.0,0.33216]
[1752437024872,1.26613039,118810.0,118800.0,0.33216]
[1752437025081,1.27397051,118810.0,118800.0,0.33216]
[1752437027076,0.61679535,118810.0,118800.0,0.33216]
[1752437027315,0.9156791,118810.0,118800.0,0.33216]
[1752437027536,0.93374191,118810.0,118800.0,0.33216]
[1752437027980,0.92590128,118810.0,118800.0,0.33216]
[1752437028187,0.93374145,118810.0,118800.0,0.33216]
[1752437028611,0.92786132,118810.0,118800.0,0.33216]
[1752437032796,1.25068925,118810.0,118800.0,0.33216]
[1752437033643,1.2506896,118810.0,118800.0,0.33216]
[1752437034746,1.3913927,118810.0,118800.0,0.33216]
[1752437034974,0.35454085,118800.0,118790.0,0.20172]
[1752437035190,1.1366639,118800.0,118790.0,0.20172]
[1752437035397,1.1416539,118800.0,118790.0,0.20172]
[1752437035610,1.1668959,118800.0,118790.0,0.20172]
[1752437036070,1.1668959,118800.0,118790.0,0.46232]
[1752437036516,1.1668959,118800.0,118790.0,0.46236]
[1752437036737,1.47518034,118800.0,118790.0,0.20172]
[1752437036951,1.49913678,118800.0,118790.0,0.20172]
[1752437037167,0.07734085,118790.0,118780.0,0.20172]
[1752437037381,0.82182118,118790.0,118780.0,0.20172]
[1752437037599,0.82470734,118790.0,118780.0,0.20172]
[1752437037811,0.84995134,118790.0,118780.0,0.33196]
[1752437038391,0.85095134,118790.0,118780.0,0.33196]
[1752437038999,0.85095134,118790.0,118780.0,0.332]
[1752437039372,0.85195134,118790.0,118780.0,0.332]
[1752437039813,0.87002808,118790.0,118780.0,0.332]
[1752437041490,0.87787889,118790.0,118780.0,0.332]
[1752437041701,0.87002808,118790.0,118780.0,0.332]
[1752437042116,0.87002808,118790.0,118780.0,0.20176]
[1752437042800,0.34,118780.0,118770.0,0.0718106]
[1752437043000,0.74237649,118780.0,118770.0,0.0719306]
[1752437043490,0.74237649,118780.0,118770.0,0.2020106]
[1752437044397,0.74555649,118780.0,118770.0,0.2020106]
[1752437044615,0.74767649,118780.0,118770.0,0.2020106]
[1752437044835,0.77897649,118780.0,118770.0,0.2018906]
[1752437045280,0.77897649,118780.0,118770.0,0.4036506]
[1752437045724,0.79351734,118780.0,118770.0,0.4036506]
[1752437046180,0.84966334,118780.0,118770.0,0.4036506]
[1752437046875,0.84966334,118780.0,118770.0,0.4036106]
[1752437047090,0.87532886,118780.0,118770.0,0.4036106]
[1752437047542,0.87532886,118780.0,118770.0,0.39520257]
[1752437049830,0.81312886,118780.0,118770.0,0.39520257]
[1752437050304,0.78258286,118780.0,118770.0,0.39532257]
[1752437050534,0.78258286,118780.0,118770.0,0.46032257]
[1752437051824,0.87258286,118780.0,118770.0,0.46032257]
[1752437052293,0.87788286,118780.0,118770.0,0.39532257]
[1752437053578,0.87788286,118780.0,118770.0,0.39520257]
[1752437053834,0.94078286,118780.0,118770.0,0.39520257]
[1752437054029,0.94078286,118780.0,118770.0,0.26516257]
[1752437054030,1.03807285,118780.0,118770.0,0.26516257]
[1752437054266,1.24122286,118780.0,118770.0,0.39524257]
[1752437054711,1.26770297,118780.0,118770.0,0.39524257]
[1752437054939,1.25928469,118780.0,118770.0,0.39524257]
[1752437055211,1.32550931,118780.0,118770.0,0.38683452]
[1752437055433,1.32550931,118780.0,118770.0,0.25675452]
[1752437055434,1.70575265,118780.0,118770.0,0.25675452]
[1752437055667,1.70575265,118780.0,118770.0,0.37846647]
[1752437055888,1.64689373,118780.0,118770.0,0.37846647]
[1752437056109,1.64689373,118780.0,118770.0,0.37005842]
[1752437056325,1.64047502,118780.0,118770.0,0.36165037]
[1752437056775,1.6468938,118780.0,118770.0,0.35324232]
[1752437056982,1.63847502,118780.0,118770.0,0.35324232]
[1752437057200,1.62191035,118780.0,118770.0,0.34583427]
[1752437057419,1.64616676,118780.0,118770.0,0.34583427]
[1752437057638,1.62932906,118780.0,118770.0,0.33742622]
[1752437057849,1.64274798,118780.0,118770.0,0.33742622]
[1752437058075,0.0629,118770.0,118760.0,0.0024]
[1752437058294,1.12962689,118770.0,118760.0,0.0024]
[1752437058510,1.14558488,118770.0,118760.0,0.0024]
[1752437058737,1.17083488,118770.0,118760.0,0.0024]
[1752437059180,1.17083488,118770.0,118760.0,0.13248]
[1752437059629,1.17879488,118770.0,118760.0,0.13248]
[1752437061218,1.17879488,118770.0,118760.0,0.145941]
[1752437061443,0.86184832,118770.0,118760.0,0.145941]
[1752437061885,1.17879488,118770.0,118760.0,0.145941]
[1752437062128,0.86184832,118770.0,118760.0,0.145941]
[1752437062340,0.84378649,118770.0,118760.0,0.145941]
[1752437062555,0.84378649,118770.0,118760.0,0.13252]
[1752437063825,0.8618178,118770.0,118760.0,0.13252]
[1752437064264,1.1787651,118770.0,118760.0,0.13252]
[1752437064923,0.65694656,118750.0,118740.0,0.20333]
[1752437065137,0.74449649,118750.0,118740.0,0.20333]
[1752437065368,0.74767649,118750.0,118740.0,0.23412356]
[1752437065599,0.43072993,118750.0,118740.0,0.20345]
[1752437065828,0.43072993,118750.0,118740.0,0.20333]
[1752437065829,0.78047649,118750.0,118740.0,0.20333]
[1752437066039,0.78047649,118750.0,118740.0,0.33353]
[1752437066214,0.78347649,118750.0,118740.0,0.33353]
[1752437066646,0.80872749,118750.0,118740.0,0.33353]
[1752437067626,0.77592749,118750.0,118740.0,0.33353]
[1752437068702,0.80872749,118750.0,118740.0,0.33353]
[1752437068913,0.77592749,118750.0,118740.0,0.33353]
[1752437071505,0.80772749,118750.0,118740.0,0.33353]
[1752437072169,0.82226834,118750.0,118740.0,0.33353]
[1752437072791,0.50532178,118750.0,118740.0,0.33353]
[1752437073006,0.79046834,118750.0,118740.0,0.33353]
[1752437073885,0.47352178,118750.0,118740.0,0.33353]
[1752437074125,0.79046834,118750.0,118740.0,0.33353]
[1752437074373,0.85396834,118750.0,118740.0,0.33353]
[1752437074582,0.85396834,118750.0,118740.0,0.20333]
[1752437074771,0.85396834,118750.0,118740.0,0.33349]
[1752437076489,0.90440834,118750.0,118740.0,0.33349]
[1752437076717,1.11612508,118750.0,118740.0,0.33349]
[1752437076945,1.12454606,118750.0,118740.0,0.33349]
[1752437077209,0.72208245,118740.0,118730.0,4e-05]
[1752437077404,1.11270649,118740.0,118730.0,0.13016]
[1752437077840,0.79575993,118740.0,118730.0,0.13016]
[1752437078051,1.12112761,118740.0,118730.0,0.13016]
[1752437078277,1.13073536,118740.0,118730.0,0.13016]
[1752437078495,0.83976969,118740.0,118730.0,0.13028]
[1752437078713,0.82174082,118740.0,118730.0,0.13028]
[1752437078933,0.82274082,118740.0,118730.0,0.13028]
[1752437079148,0.82274082,118740.0,118730.0,0.13116]
[1752437080042,0.82174082,118740.0,118730.0,0.13016]
[1752437080465,0.82274082,118740.0,118730.0,0.13016]
[1752437081239,0.84077693,118740.0,118730.0,0.13016]
[1752437081663,0.84077693,118740.0,118730.0,0.13028]
[1752437081889,0.84077693,118740.0,118730.0,0.13016]
[1752437082140,0.8466445,118740.0,118730.0,0.13016]
[1752437082338,0.88706792,118740.0,118730.0,0.13016]
[1752437082847,0.4806631,118730.0,118720.0,0.2367]
[1752437083065,0.56609303,118730.0,118720.0,0.23682]
[1752437083282,0.88303959,118730.0,118720.0,0.23682]
[1752437083948,0.88303959,118730.0,118720.0,0.36714]
[1752437084173,0.88608959,118730.0,118720.0,0.33464]
[1752437084386,0.88608959,118730.0,118720.0,0.33564]
[1752437085252,0.91992959,118730.0,118720.0,0.33552]
[1752437085471,0.92775576,118730.0,118720.0,0.33552]
[1752437085684,0.89595576,118730.0,118720.0,0.33552]
[1752437085893,0.88812959,118730.0,118720.0,0.33564]
[1752437086774,0.91438459,118730.0,118720.0,0.33564]
[1752437086993,0.91438459,118730.0,118720.0,0.33464]
[1752437087436,0.91538459,118730.0,118720.0,0.33464]
[1752437088058,0.92321085,118730.0,118720.0,0.33464]
[1752437088269,0.91538459,118730.0,118720.0,0.33464]
[1752437089551,0.923212,118730.0,118720.0,0.33464]
[1752437090468,0.91538459,118730.0,118720.0,0.33464]
[1752437090688,0.92321306,118730.0,118720.0,0.33464]
[1752437091469,0.92321428,118730.0,118720.0,0.33464]
[1752437093170,0.92908791,118730.0,118720.0,0.33464]
[1752437093394,0.92908822,118730.0,118720.0,0.33464]
[1752437093620,0.91538459,118730.0,118720.0,0.33464]
[1752437093882,0.92321895,118730.0,118720.0,0.33464]
[1752437094100,0.92909471,118730.0,118720.0,0.33464]
[1752437094535,0.9290946,118730.0,118720.0,0.33464]
[1752437094742,0.9290946,118730.0,118720.0,0.33452]
[1752437094958,0.94363545,118730.0,118720.0,0.33452]
[1752437095180,1.00853545,118730.0,118720.0,0.33452]
[1752437096029,1.05897545,118730.0,118720.0,0.33452]
[1752437096492,1.05114109,118730.0,118720.0,0.33452]
[1752437096704,1.05898232,118730.0,118720.0,0.33452]
[1752437097128,1.05898246,118730.0,118720.0,0.33452]
[1752437098426,1.37592902,118730.0,118720.0,0.33452]
[1752437098647,1.05898246,118730.0,118720.0,0.33452]
[1752437099517,1.05898355,118730.0,118720.0,0.33452]
[1752437099746,0.74203699,118730.0,118720.0,0.33452]
[1752437099968,1.05898355,118730.0,118720.0,0.33452]
[1752437100193,1.07704646,118730.0,118720.0,0.33452]
[1752437100445,1.05898355,118730.0,118720.0,0.33452]
[1752437100666,1.07704647,118730.0,118720.0,0.33452]
[1752437101988,0.9240127,118730.0,118720.0,0.33464]
[1752437102216,0.9240127,118730.0,118720.0,0.39824]
[1752437103250,0.9240127,118730.0,118720.0,0.26296]
[1752437103505,0.9272427,118730.0,118720.0,0.20184]
[1752437103958,0.9293027,118730.0,118720.0,0.20184]
[1752437104181,0.91558459,118730.0,118720.0,0.20184]
[1752437104431,0.92931335,118730.0,118720.0,0.4618]
[1752437105107,0.94739051,118730.0,118720.0,0.4618]
[1752437105338,0.96193136,118730.0,118720.0,0.4618]
[1752437105573,1.02403136,118730.0,118720.0,0.4618]
[1752437106044,1.07447136,118730.0,118720.0,0.4618]
[1752437109621,1.04437136,118730.0,118720.0,0.4618]
[1752437110101,1.04437702,118730.0,118720.0,0.4618]
[1752437110327,1.07737702,118730.0,118720.0,0.4618]
[1752437112704,1.0636426,118730.0,118720.0,0.4618]
[1752437112902,1.07738102,118730.0,118720.0,0.4618]
[1752437113720,1.16738102,118730.0,118720.0,0.4618]
[1752437118434,1.16738102,118730.0,118720.0,0.25996]
[1752437118649,1.16738335,118730.0,118720.0,0.25996]
[1752437121439,1.1536426,118730.0,118720.0,0.25996]
[1752437121641,1.16738689,118730.0,118720.0,0.25996]
[1752437122093,1.1673869,118730.0,118720.0,0.25996]
[1752437122945,0.85044034,118730.0,118720.0,0.25996]
[1752437123158,1.1343869,118730.0,118720.0,0.25996]
[1752437127732,1.12849649,118730.0,118720.0,0.25996]
[1752437127949,1.1206426,118730.0,118720.0,0.4618]
[1752437129612,1.12653357,118730.0,118720.0,0.4618]
[1752437129830,1.13438819,118730.0,118720.0,0.4618]
[1752437130697,0.84984163,118730.0,118720.0,0.4618]
[1752437130916,1.11634819,118730.0,118720.0,0.4618]
[1752437132475,0.34,118720.0,118700.0,0.07282]